bitfinex-derivatives/quotes_BTCF0:USTF0_20250106
["timestamp","ask_amount","ask_price","bid_price","bid_amount"]
[1736130083997,0.6264,98896.0,98895.0,0.29909468]
[1736130084390,0.045516,98891.0,98890.0,0.23908787]
[1736130084595,0.045519,98885.0,98884.0,0.29885984]
[1736130084998,0.406319,98885.0,98884.0,0.29885984]
[1736130085199,0.045521,98880.0,98879.0,0.35891362]
[1736130085403,0.045521,98880.0,98867.0,0.41873256]
[1736130085404,0.045527,98868.0,98867.0,0.41873256]
[1736130085606,0.406327,98868.0,98867.0,0.41873256]
[1736130085903,0.04553,98860.0,98854.0,0.35878738]
[1736130086203,0.40633,98860.0,98854.0,0.35878738]
[1736130087405,0.40633,98860.0,98848.0,0.045536]
[1736130087609,0.40633,98860.0,98851.0,0.045534]
[1736130087906,0.40633,98860.0,98859.0,4e-05]
[1736130088405,0.045541,98838.0,98834.0,0.045542]
[1736130088601,0.045542,98836.0,98824.0,0.3608]
[1736130088806,0.045542,98836.0,98830.0,0.045544]
[1736130089193,0.3608,98842.0,98831.0,0.01581726]
[1736130089396,0.4600224,98860.0,98832.0,0.3608]
[1736130089601,0.045535,98851.0,98840.0,0.1437614]
[1736130089803,0.3608,98851.0,98840.0,0.045539]
[1736130090127,0.3608,98851.0,98841.0,0.01581726]
[1736130090497,0.3608,98851.0,98832.0,0.3608]
[1736130090498,0.3608,98851.0,98844.0,0.045537]
[1736130090811,0.12100741,98857.0,98856.0,0.045532]
[1736130091311,0.3608,98860.0,98856.0,0.045532]
[1736130091505,0.40633,98861.0,98848.0,0.5395]
[1736130091695,0.045536,98849.0,98840.0,0.3608]
[1736130091896,0.3608,98851.0,98844.0,0.006]
[1736130091897,0.045537,98845.0,98844.0,0.006]
[1736130092300,0.045537,98845.0,98844.0,0.0218167]
[1736130093003,0.045537,98845.0,98844.0,0.0158167]
[1736130093308,0.045537,98845.0,98844.0,0.0178167]
[1736130094706,0.046537,98845.0,98844.0,0.0238167]
[1736130098805,0.001,98845.0,98844.0,0.0238167]
[1736130099001,0.001,98845.0,98844.0,0.3688]
[1736130099304,0.12100741,98857.0,98854.0,0.045533]
[1736130099503,0.12100741,98857.0,98855.0,0.045532]
[1736130099897,0.40633,98861.0,98855.0,0.045532]
[1736130100708,0.40633,98861.0,98855.0,0.046532]
[1736130102013,0.045531,98860.0,98855.0,0.046532]
[1736130102604,0.3608,98861.0,98857.0,0.045532]
[1736130102808,0.045529,98863.0,98857.0,0.045532]
[1736130103405,0.14748303,98870.0,98857.0,0.045532]
[1736130103605,0.04553,98861.0,98857.0,0.045532]
[1736130104409,0.04553,98861.0,98857.0,0.046532]
[1736130104917,0.3608,98872.0,98857.0,0.046532]
[1736130105131,0.045531,98860.0,98857.0,0.001]
[1736130105805,0.3608,98872.0,98857.0,0.001]
[1736130106007,0.00072,98878.0,98865.0,0.3608]
[1736130106311,0.12100741,98877.0,98873.0,0.045524]
[1736130107416,0.045522,98879.0,98873.0,0.045524]
[1736130108009,0.045524,98875.0,98873.0,0.007]
[1736130108813,0.045524,98875.0,98873.0,0.009]
[1736130109011,0.001,98877.0,98875.0,0.045523]
[1736130109207,0.045523,98876.0,98863.0,0.3608]
[1736130109510,0.3608,98866.0,98864.0,0.00427302]
[1736130109711,0.3608,98866.0,98865.0,0.00427302]
[1736130110019,0.3608,98866.0,98865.0,0.04980102]
[1736130110316,0.3608,98866.0,98865.0,0.0042626]
[1736130110709,0.3608,98866.0,98863.0,0.004]
[1736130111508,0.3638,98866.0,98863.0,0.001]
[1736130111710,0.3638,98866.0,98864.0,0.00426659]
[1736130111910,0.3638,98866.0,98865.0,0.00426659]
[1736130112218,0.3658,98866.0,98865.0,0.00426659]
[1736130113111,0.3668,98866.0,98865.0,0.00426659]
[1736130113615,0.3628,98866.0,98865.0,0.00426659]
[1736130113915,0.3678,98866.0,98864.0,0.045528]
[1736130114112,0.3678,98866.0,98858.0,0.28211435]
[1736130114304,0.3678,98866.0,98858.0,0.32764535]
[1736130114509,0.3678,98866.0,98859.0,0.045531]
[1736130114712,0.3678,98866.0,98860.0,0.04553]
[1736130115410,0.3678,98866.0,98858.0,0.28211435]
[1736130115716,0.3678,98866.0,98863.0,0.045529]
[1736130115910,0.3658,98866.0,98865.0,0.045528]
[1736130116116,0.3628,98866.0,98865.0,0.045528]
[1736130116811,0.3638,98866.0,98865.0,0.045528]
[1736130117310,0.3668,98866.0,98865.0,0.045528]
[1736130118112,0.3668,98866.0,98858.0,0.01021435]
[1736130118313,0.045529,98865.0,98856.0,0.301032]
[1736130119225,0.3648,98866.0,98856.0,0.2555]
[1736130119410,0.3628,98866.0,98864.0,0.045528]
[1736130119914,0.3618,98866.0,98864.0,0.045528]
[1736130120115,0.3608,98866.0,98864.0,0.045528]
[1736130120924,0.3638,98866.0,98865.0,0.00427194]
[1736130121419,0.003,98866.0,98865.0,0.00427194]
[1736130121715,0.005,98866.0,98865.0,0.00427194]
[1736130121910,0.005,98866.0,98864.0,0.045528]
[1736130122514,0.003,98866.0,98864.0,0.045528]
[1736130122713,0.005,98866.0,98864.0,0.045528]
[1736130123315,0.002,98866.0,98864.0,0.045528]
[1736130123525,0.006,98866.0,98864.0,0.045528]
[1736130123907,0.002,98866.0,98864.0,0.045528]
[1736130124116,0.005,98866.0,98864.0,0.045528]
[1736130124518,0.04553,98861.0,98856.0,0.26566113]
[1736130124823,0.3608,98857.0,98856.0,0.01016113]
[1736130125122,0.3608,98857.0,98851.0,0.045534]
[1736130125318,0.3608,98857.0,98847.0,0.67763871]
[1736130125513,0.3608,98857.0,98854.0,0.045533]
[1736130126314,0.3608,98857.0,98855.0,0.045532]
[1736130126819,0.3608,98867.0,98866.0,0.045528]
[1736130127128,0.3608,98876.0,98872.0,0.045525]
[1736130127129,0.12100741,98873.0,98872.0,0.045525]
[1736130128225,0.3608,98876.0,98872.0,0.045525]
[1736130129218,0.3608,98876.0,98872.0,0.048525]
[1736130129922,0.3608,98876.0,98872.0,0.047525]
[1736130130321,0.3618,98876.0,98872.0,0.053525]
[1736130130518,0.3618,98876.0,98873.0,0.045524]
[1736130131718,0.3618,98876.0,98873.0,0.047524]
[1736130132517,0.3618,98876.0,98873.0,0.002]
[1736130132816,0.3618,98876.0,98875.0,0.045524]
[1736130133020,0.3608,98876.0,98875.0,0.045524]
[1736130133822,0.3618,98876.0,98875.0,0.045524]
[1736130134522,0.3608,98876.0,98875.0,0.045524]
[1736130134720,0.3618,98876.0,98875.0,0.051524]
[1736130135527,0.3618,98876.0,98875.0,0.053524]
[1736130136014,0.3618,98876.0,98875.0,0.008]
[1736130140322,0.51166239,98876.0,98875.0,0.008]
[1736130140528,0.045528,98866.0,98853.0,0.045534]
[1736130140718,0.045528,98866.0,98855.0,0.045533]
[1736130140719,0.3608,98857.0,98855.0,0.045533]
[1736130141820,0.045533,98854.0,98852.0,0.00994267]
[1736130142016,0.045533,98854.0,98842.0,0.29847144]
[1736130142223,0.3608,98843.0,98842.0,0.34401044]
[1736130142632,0.3608,98843.0,98842.0,0.35982632]
[1736130142818,0.3608,98843.0,98842.0,0.06135488]
[1736130143031,0.3608,98843.0,98842.0,0.045539]
[1736130143419,0.3608,98843.0,98842.0,0.00996903]
[1736130143626,0.3608,98843.0,98842.0,0.01581576]
[1736130144421,0.3608,98843.0,98833.0,0.62584228]
[1736130144735,0.3608,98835.0,98833.0,0.62584228]
[1736130145733,0.3608,98835.0,98833.0,0.33037084]
[1736130147722,0.3608,98835.0,98833.0,0.01302784]
[1736130148724,0.3618,98835.0,98833.0,0.01502784]
[1736130152038,0.407342,98835.0,98833.0,0.01502784]
[1736130152537,0.407342,98835.0,98834.0,0.01581901]
[1736130155144,0.407342,98835.0,98806.0,0.23913422]
[1736130155145,0.3618,98835.0,98802.0,0.23913422]
[1736130155344,0.3608,98814.0,98811.0,0.045553]
[1736130156038,0.3608,98814.0,98812.0,0.045552]
[1736130156539,0.3618,98814.0,98811.0,0.002]
[1736130157841,0.3618,98814.0,98811.0,0.007]
[1736130158238,0.3618,98814.0,98811.0,0.005]
[1736130158641,0.3608,98814.0,98811.0,0.005]
[1736130158840,0.3618,98814.0,98811.0,0.005]
[1736130159139,0.3618,98814.0,98811.0,0.003]
[1736130159341,0.3608,98814.0,98811.0,0.003]
[1736130159647,0.3618,98814.0,98811.0,0.003]
[1736130160443,0.3618,98814.0,98813.0,0.045552]
[1736130161548,0.001,98814.0,98811.0,0.3608]
[1736130161735,0.001,98814.0,98813.0,0.048552]
[1736130162549,0.001,98814.0,98811.0,0.3608]
[1736130162550,0.3608,98822.0,98811.0,0.3608]
[1736130162842,0.3608,98837.0,98831.0,0.045544]
[1736130163435,0.045539,98843.0,98831.0,0.045544]
[1736130164146,0.3608,98837.0,98821.0,0.00056]
[1736130164346,0.045539,98843.0,98812.0,0.00996059]
[1736130164347,0.04555,98819.0,98812.0,0.00996059]
[1736130164653,0.045552,98815.0,98811.0,0.003]
[1736130164853,0.045552,98815.0,98811.0,0.001]
[1736130165160,0.045552,98815.0,98813.0,0.003]
[1736130165743,0.045552,98815.0,98812.0,0.001]
[1736130165944,0.3608,98822.0,98811.0,0.003]
[1736130166143,0.001,98815.0,98813.0,0.045552]
[1736130166548,0.001,98815.0,98813.0,0.048552]
[1736130167348,0.001,98815.0,98814.0,0.0158206]
[1736130167654,0.3608,98822.0,98814.0,0.0158206]
[1736130168047,0.3608,98822.0,98815.0,0.0158206]
[1736130168248,0.3608,98822.0,98821.0,0.045549]
[1736130168647,0.3608,98822.0,98821.0,0.0613696]
[1736130168952,0.3618,98822.0,98821.0,0.0158206]
[1736130169455,0.3608,98822.0,98821.0,0.0168206]
[1736130169653,0.3608,98822.0,98821.0,0.0178206]
[1736130170361,0.6459,98822.0,98821.0,0.0178206]
[1736130172448,0.76716343,98822.0,98821.0,0.0178206]
[1736130172647,0.48206343,98822.0,98821.0,0.0178206]
[1736130172952,0.12126343,98822.0,98821.0,0.0429453]
[1736130173458,0.045555,98808.0,98801.0,0.045558]
[1736130173755,0.045557,98804.0,98800.0,0.1]
[1736130173954,0.45904727,98811.0,98800.0,0.1]
[1736130173955,0.045558,98801.0,98800.0,0.11000255]
[1736130174348,0.045558,98801.0,98800.0,0.1]
[1736130175443,0.045558,98801.0,98800.0,0.105]
[1736130175855,0.046558,98801.0,98800.0,0.105]
[1736130176254,0.046558,98801.0,98800.0,0.1]
[1736130177451,0.045558,98801.0,98800.0,0.1]
[1736130178761,0.16662065,98801.0,98800.0,0.1]
[1736130180264,0.045558,98801.0,98800.0,0.1]
[1736130181751,0.045563,98790.0,98789.0,0.00012587]
[1736130181956,0.406363,98790.0,98789.0,0.00012587]
[1736130182155,0.3608,98790.0,98780.0,0.045567]
[1736130182353,0.045566,98784.0,98780.0,0.045567]
[1736130183249,0.000114,98783.0,98780.0,0.045567]
[1736130183462,0.04568,98783.0,98774.0,0.01002439]
[1736130183649,0.04568,98783.0,98773.0,0.045571]
[1736130184256,0.04568,98783.0,98776.0,0.3608]
[1736130184652,0.04668,98783.0,98773.0,0.045571]
[1736130185261,0.04668,98783.0,98780.0,0.004]
[1736130185865,0.04668,98783.0,98781.0,0.2896]
[1736130186060,0.04668,98783.0,98773.0,0.050571]
[1736130186363,0.045567,98782.0,98773.0,0.050571]
[1736130186567,0.045567,98781.0,98773.0,0.050571]
[1736130187161,0.045567,98781.0,98773.0,0.045571]
[1736130187463,0.045567,98781.0,98780.0,0.004]
[1736130188352,0.046567,98781.0,98780.0,0.004]
[1736130188767,0.046567,98781.0,98773.0,0.045571]
[1736130189067,0.046567,98781.0,98773.0,0.050571]
[1736130189659,0.046567,98781.0,98780.0,0.004]
[1736130189859,0.045567,98781.0,98780.0,0.004]
[1736130190059,0.046567,98781.0,98780.0,0.004]
[1736130190668,0.046567,98781.0,98773.0,0.050571]
[1736130192063,0.046567,98781.0,98780.0,0.004]
[1736130192860,0.046567,98781.0,98773.0,0.047571]
[1736130193668,0.046567,98781.0,98773.0,0.045571]
[1736130193867,0.046567,98781.0,98774.0,0.01582729]
[1736130194163,0.001,98781.0,98775.0,0.01582729]
[1736130194369,0.000114,98783.0,98775.0,0.01582729]
[1736130194666,0.000114,98783.0,98776.0,0.01582729]
[1736130195179,0.001,98781.0,98779.0,0.045568]
[1736130196959,0.001,98781.0,98779.0,0.046568]
[1736130197162,0.001114,98783.0,98779.0,0.046568]
[1736130197665,0.000114,98783.0,98779.0,0.046568]
[1736130198462,0.000114,98783.0,98782.0,0.045567]
[1736130198869,0.09079724,98793.0,98792.0,0.045562]
[1736130199063,0.12106299,98798.0,98792.0,0.406362]
[1736130199263,0.15058239,98803.0,98802.0,0.045557]
[1736130199466,0.14986239,98803.0,98802.0,0.406357]
[1736130199678,0.09079644,98806.0,98803.0,0.045557]
[1736130199864,0.09079644,98806.0,98805.0,0.045556]
[1736130200976,0.50072,98812.0,98811.0,0.045553]
[1736130201164,0.5,98812.0,98811.0,0.406353]
[1736130202865,0.507,98812.0,98811.0,0.406353]
[1736130203066,0.51,98812.0,98811.0,0.406353]
[1736130204369,0.51,98812.0,98811.0,0.41655118]
[1736130206164,0.51,98812.0,98811.0,0.05575118]
[1736130206466,0.045554,98811.0,98807.0,0.17932864]
[1736130206670,0.406354,98809.0,98807.0,0.17932864]
[1736130206871,0.3608,98809.0,98807.0,0.17932864]
[1736130207170,0.00072,98811.0,98807.0,0.17932864]
[1736130207366,0.51072,98812.0,98810.0,0.045554]
[1736130207562,0.51,98812.0,98810.0,0.045554]
[1736130207762,0.003,98811.0,98810.0,0.045554]
[1736130208475,0.5078,98812.0,98810.0,0.045554]
[1736130208678,0.51,98812.0,98810.0,0.045554]
[1736130208878,0.503,98812.0,98810.0,0.045554]
[1736130209277,0.5,98812.0,98810.0,0.045554]
[1736130209481,0.003,98811.0,98810.0,0.045554]
[1736130210777,0.01,98811.0,98810.0,0.045554]
[1736130210977,0.007,98811.0,98810.0,0.045554]
[1736130211978,0.01,98811.0,98810.0,0.045554]
[1736130212178,0.3708,98811.0,98803.0,0.406357]
[1736130212382,0.045555,98807.0,98801.0,0.17932864]
[1736130212570,0.3608,98802.0,98801.0,0.17932864]
[1736130213173,0.045559,98799.0,98798.0,0.17932864]
[1736130214877,0.045559,98799.0,98788.0,0.045564]
[1736130215183,0.3608,98794.0,98788.0,0.045564]
[1736130215572,0.406361,98794.0,98788.0,0.045564]
[1736130216077,0.406361,98794.0,98785.0,0.01008959]
[1736130216282,0.406361,98794.0,98788.0,0.003]
[1736130216671,0.407361,98794.0,98780.0,0.09824727]
[1736130217380,0.408361,98794.0,98780.0,0.09824727]
[1736130217580,0.045564,98788.0,98777.0,0.54064864]
[1736130217781,0.045564,98788.0,98777.0,0.3608]
[1736130218183,0.045564,98788.0,98780.0,0.001]
[1736130218881,0.045564,98788.0,98777.0,0.3618]
[1736130219083,0.045564,98788.0,98777.0,0.3648]
[1736130219387,0.274,98787.0,98777.0,0.3648]
[1736130219577,0.274,98787.0,98777.0,0.3618]
[1736130219774,0.5472,98787.0,98780.0,0.002]
[1736130220174,0.5472,98787.0,98777.0,0.3618]
[1736130220370,0.5472,98787.0,98780.0,0.001]
[1736130221088,0.5472,98787.0,98777.0,0.3638]
[1736130221385,0.5472,98787.0,98780.0,0.001]
[1736130221588,0.045566,98783.0,98780.0,0.001]
[1736130221782,0.265,98782.0,98781.0,0.01582655]
[1736130221986,0.045567,98781.0,98744.0,0.08988893]
[1736130222175,0.406374,98767.0,98751.0,0.00996001]
[1736130222377,0.045576,98762.0,98743.0,0.46431656]
[1736130222777,0.045576,98762.0,98746.0,0.045583]
[1736130222984,0.045576,98762.0,98750.0,0.09824727]
[1736130223578,0.045576,98762.0,98745.0,0.01023385]
[1736130223579,0.3608,98757.0,98745.0,0.01023385]
[1736130223775,0.3608,98757.0,98747.0,0.45904727]
[1736130223980,0.3608,98757.0,98755.0,0.045579]
[1736130224175,0.3608,98757.0,98756.0,0.2847]
[1736130224884,0.001,98762.0,98757.0,0.045578]
[1736130225077,0.001,98762.0,98761.0,0.045576]
[1736130225578,0.3608,98783.0,98757.0,0.2765]
[1736130225885,0.3608,98783.0,98757.0,0.28669832]
[1736130226081,0.3608,98783.0,98771.0,0.045572]
[1736130226775,0.3608,98811.0,98781.0,0.0037]
[1736130226975,0.3608,98811.0,98798.0,0.45904727]
[1736130227175,0.3608,98811.0,98807.0,0.045555]
[1736130227380,0.18017495,98810.0,98807.0,0.045555]
[1736130227782,0.18017495,98810.0,98798.0,0.45904727]
[1736130227977,0.18017495,98810.0,98800.0,0.045558]
[1736130228191,0.18017495,98810.0,98800.0,0.14380527]
[1736130228489,0.18017495,98810.0,98798.0,0.3608]
[1736130228490,0.001,98808.0,98798.0,0.3608]
[1736130228694,0.045558,98802.0,98793.0,0.01023893]
[1736130228883,0.045558,98802.0,98782.0,0.28262]
[1736130228884,0.045558,98802.0,98782.0,0.2821]
[1736130229087,0.045559,98798.0,98784.0,0.045565]
[1736130229287,0.28,98797.0,98785.0,0.045565]
[1736130230380,0.28,98797.0,98794.0,0.045561]
[1736130230678,0.3608,98803.0,98787.0,0.09824727]
[1736130231087,0.045555,98807.0,98787.0,0.45904727]
[1736130231987,0.045555,98807.0,98795.0,0.04556]
[1736130232290,0.64140001,98811.0,98797.0,0.04556]
[1736130232486,0.6408,98811.0,98797.0,0.04556]
[1736130233588,0.6418,98811.0,98797.0,0.04656]
[1736130233785,0.6418,98811.0,98797.0,0.04756]
[1736130233986,0.6418,98811.0,98798.0,0.045559]
[1736130234691,0.3608,98799.0,98797.0,0.001]
[1736130234894,0.2843,98798.0,98797.0,0.001]
[1736130235089,0.045562,98792.0,98782.0,0.2821]
[1736130235292,0.2765,98791.0,98782.0,0.2821]
[1736130235692,0.2765,98791.0,98781.0,0.045567]
[1736130236088,0.045563,98790.0,98781.0,0.045567]
[1736130236291,0.2765,98791.0,98775.0,0.3608]
[1736130236483,0.045564,98789.0,98775.0,0.3608]
[1736130236682,0.3608,98783.0,98775.0,0.3608]
[1736130237289,0.045567,98782.0,98781.0,0.002]
[1736130238396,0.045574,98767.0,98761.0,0.045576]
[1736130238594,0.406374,98767.0,98761.0,0.045576]
[1736130238793,0.045575,98763.0,98754.0,0.29847144]
[1736130238994,0.045575,98763.0,98752.0,0.04558]
[1736130239190,0.3608,98767.0,98752.0,0.04558]
[1736130239391,0.04558,98753.0,98747.0,0.3608]
[1736130239593,0.04558,98753.0,98748.0,0.01583131]
[1736130239795,0.04558,98753.0,98749.0,0.01583131]
[1736130240291,0.045581,98751.0,98750.0,0.01583131]
[1736130241198,0.3608,98755.0,98754.0,0.045579]
[1736130241695,0.3608,98755.0,98754.0,0.06141031]
[1736130241903,0.3608,98755.0,98754.0,0.045579]
[1736130242496,0.3618,98755.0,98754.0,0.046579]
[1736130243799,0.3618,98755.0,98754.0,0.047579]
[1736130244001,0.3618,98755.0,98754.0,0.002]
[1736130244501,0.3608,98755.0,98754.0,0.001]
[1736130244805,0.3608,98755.0,98754.0,0.002]
[1736130245492,0.3608,98755.0,98737.0,0.045587]
[1736130245693,0.045584,98745.0,98737.0,0.045587]
[1736130245899,0.045589,98734.0,98729.0,0.045591]
[1736130246506,0.045589,98734.0,98730.0,0.01583488]
[1736130246999,0.045589,98734.0,98731.0,0.01583488]
[1736130247204,0.045589,98734.0,98732.0,0.01583488]
[1736130247393,0.045589,98734.0,98729.0,0.005]
[1736130247796,0.045589,98734.0,98730.0,0.015835]
[1736130247997,0.36132001,98738.0,98731.0,0.015835]
[1736130248191,0.3608,98738.0,98735.0,0.045588]
[1736130248602,0.045586,98741.0,98735.0,0.045588]
[1736130249905,0.045586,98741.0,98735.0,0.048588]
[1736130250405,0.045586,98741.0,98735.0,0.003]
[1736130250708,0.045586,98741.0,98737.0,0.045587]
[1736130250709,0.001,98738.0,98737.0,0.045587]
[1736130251296,0.046586,98741.0,98737.0,0.045587]
[1736130252102,0.046586,98741.0,98737.0,0.047587]
[1736130252904,0.045586,98740.0,98737.0,0.047587]
[1736130253498,0.045586,98739.0,98737.0,0.045587]
[1736130253706,0.3608,98760.0,98738.0,0.3608]
[1736130253912,0.3608,98760.0,98750.0,0.09824727]
[1736130254206,0.3608,98760.0,98754.0,0.045579]
[1736130254409,0.3608,98760.0,98749.0,0.3608]
[1736130254603,0.15100585,98769.0,98758.0,0.045577]
[1736130254903,0.045575,98764.0,98760.0,0.045577]
[1736130255111,0.045576,98763.0,98760.0,0.045577]
[1736130255306,0.045576,98763.0,98757.0,0.3608]
[1736130256601,0.002,98769.0,98757.0,0.3608]
[1736130256810,0.002,98769.0,98764.0,0.045575]
[1736130257495,0.002,98763.0,98757.0,0.3608]
[1736130258210,0.04709138,98771.0,98757.0,0.3608]
[1736130258211,0.005,98769.0,98757.0,0.3608]
[1736130258402,0.005,98769.0,98768.0,0.045572]
[1736130258603,0.001,98769.0,98768.0,0.045572]
[1736130259403,0.001,98769.0,98767.0,0.3608]
[1736130259598,0.003,98769.0,98766.0,0.3608]
[1736130260208,0.003,98769.0,98768.0,0.045573]
[1736130260602,0.005,98769.0,98768.0,0.045573]
[1736130260798,0.3608,98781.0,98769.0,0.045572]
[1736130261004,0.045558,98800.0,98781.0,0.045566]
[1736130261005,0.12070834,98793.0,98781.0,0.045566]
[1736130261300,0.3608,98786.0,98775.0,0.3608]
[1736130261505,0.12070834,98793.0,98774.0,0.04557]
[1736130261506,0.045566,98783.0,98774.0,0.04557]
[1736130262010,0.003,98781.0,98774.0,0.04557]
[1736130262512,0.045566,98783.0,98774.0,0.04557]
[1736130263104,0.045566,98783.0,98774.0,0.04657]
[1736130263507,0.045566,98783.0,98775.0,0.3608]
[1736130264607,0.045566,98783.0,98775.0,0.3638]
[1736130265012,0.045566,98783.0,98775.0,0.003]
[1736130265510,0.406363,98790.0,98777.0,0.045568]
[1736130265711,0.045563,98789.0,98777.0,0.045568]
[1736130266607,0.045563,98789.0,98778.0,0.045568]
[1736130267911,0.3618,98790.0,98779.0,0.09824727]
[1736130268114,0.3618,98790.0,98783.0,0.045566]
[1736130268507,0.045563,98789.0,98772.0,0.3608]
[1736130268704,0.045563,98789.0,98779.0,0.09824727]
[1736130269101,0.045563,98789.0,98779.0,0.14381427]
[1736130269505,0.045563,98789.0,98782.0,0.045566]
[1736130269711,0.3618,98790.0,98789.0,0.045563]
[1736130270400,0.001,98790.0,98789.0,0.045563]
[1736130270608,0.002,98790.0,98789.0,0.045563]
[1736130271210,0.001,98790.0,98789.0,0.045563]
[1736130271411,0.045559,98797.0,98789.0,0.045563]
[1736130271612,0.001,98790.0,98789.0,0.045563]
[1736130272322,0.002,98790.0,98789.0,0.045563]
[1736130281915,0.3628,98790.0,98782.0,0.3608]
[1736130282628,0.045566,98783.0,98782.0,0.3608]
[1736130283823,0.045566,98783.0,98782.0,0.002]
[1736130284819,0.045566,98783.0,98782.0,0.003]
[1736130286717,0.12070834,98787.0,98782.0,0.003]
[1736130286930,0.12070834,98787.0,98785.0,0.045564]
[1736130287119,0.12070834,98786.0,98785.0,0.045564]
[1736130288423,0.12070834,98786.0,98782.0,0.001]
[1736130288424,0.12070834,98790.0,98789.0,0.045563]
[1736130288631,0.12070834,98790.0,98789.0,0.406363]
[1736130289720,0.12070834,98804.0,98801.0,0.045557]
[1736130290731,0.12070834,98806.0,98801.0,0.045557]
[1736130292026,0.12070834,98807.0,98801.0,0.045557]
[1736130292427,0.12070834,98807.0,98801.0,0.046557]
[1736130293536,0.50052001,98812.0,98801.0,0.046557]
[1736130293834,0.5,98812.0,98801.0,0.046557]
[1736130294835,0.5,98812.0,98801.0,0.05694836]
[1736130296729,0.5,98812.0,98801.0,0.31139136]
[1736130297038,0.00052001,98823.0,98822.0,0.045548]
[1736130297231,0.18017495,98828.0,98824.0,0.045547]
[1736130297838,0.50052001,98837.0,98824.0,0.045547]
[1736130300437,0.54606101,98837.0,98824.0,0.045547]
[1736130300934,0.54606101,98837.0,98824.0,0.046547]
[1736130301335,0.54606101,98837.0,98824.0,0.05659467]
[1736130302135,0.145546,98825.0,98824.0,0.01104767]
[1736130302341,0.506346,98825.0,98824.0,0.001]
[1736130304245,0.045548,98821.0,98815.0,0.09824727]
[1736130304436,0.045549,98819.0,98815.0,0.09824727]
[1736130304634,0.045549,98819.0,98810.0,0.01030845]
[1736130304830,0.045549,98819.0,98812.0,0.045552]
[1736130305644,0.045549,98819.0,98815.0,0.001]
[1736130305845,0.045549,98819.0,98815.0,0.004]
[1736130306439,0.045549,98819.0,98812.0,0.045552]
[1736130306440,0.045549,98819.0,98812.0,0.048552]
[1736130306639,0.045549,98819.0,98812.0,0.049552]
[1736130306948,0.045549,98819.0,98812.0,0.046552]
[1736130307144,0.045549,98819.0,98815.0,0.003]
[1736130307653,0.1,98825.0,98817.0,0.04555]
[1736130308342,0.1,98825.0,98815.0,0.56129454]
[1736130308553,0.1,98825.0,98823.0,0.045547]
[1736130309952,0.1,98825.0,98823.0,0.001]
[1736130309953,0.045547,98824.0,98823.0,0.001]
[1736130310450,0.317247,98824.0,98823.0,0.001]
[1736130310849,0.317247,98824.0,98823.0,0.01135416]
[1736130311049,0.317247,98824.0,98823.0,0.001]
[1736130311648,0.1,98825.0,98823.0,0.001]
[1736130311845,0.1,98825.0,98823.0,0.046547]
[1736130314553,0.1,98825.0,98824.0,0.2642]
[1736130314753,0.1,98825.0,98824.0,0.5291]
[1736130315954,0.1,98825.0,98824.0,0.5301]
[1736130322452,0.018118,98825.0,98824.0,0.5301]
[1736130324061,0.018118,98825.0,98824.0,0.7692307]
[1736130325261,0.018118,98825.0,98824.0,0.5301]
[1736130325863,0.018118,98825.0,98824.0,0.2659]
[1736130326256,0.018118,98825.0,98824.0,0.001]
[1736130327163,0.538618,98825.0,98824.0,0.001]
[1736130329054,0.268618,98825.0,98824.0,0.001]
[1736130330563,0.268618,98825.0,98824.0,0.01097899]
[1736130330763,0.268618,98825.0,98824.0,0.001]
[1736130332962,0.018118,98825.0,98824.0,0.001]
[1736130335567,0.018118,98825.0,98824.0,0.3618]
[1736130335877,1e-08,98825.0,98824.0,0.001]
[1736130338774,1e-08,98825.0,98824.0,0.268]
[1736130339770,1e-08,98825.0,98824.0,0.6288]
[1736130343876,0.3608,98870.0,98824.0,0.84302967]
[1736130344067,0.50052001,98862.0,98857.0,0.045532]
[1736130344977,0.15248596,98858.0,98857.0,0.045532]
[1736130345578,0.15948596,98858.0,98857.0,0.045532]
[1736130345774,0.008,98858.0,98857.0,0.045532]
[1736130345975,0.008,98858.0,98856.0,0.23927586]
[1736130346173,0.011,98858.0,98856.0,0.23927586]
[1736130346683,0.011,98858.0,98857.0,0.045532]
[1736130348177,0.011,98858.0,98857.0,0.22495311]
[1736130348691,0.01,98858.0,98857.0,0.22495311]
[1736130349071,0.011,98858.0,98857.0,0.22495311]
[1736130349483,0.011,98858.0,98857.0,0.045532]
[1736130349685,0.011,98858.0,98857.0,0.406332]
[1736130351181,0.11105285,98862.0,98861.0,0.04553]
[1736130351485,0.11053284,98862.0,98861.0,0.04553]
[1736130352280,0.11153284,98862.0,98861.0,0.05053]
[1736130352477,0.1,98875.0,98861.0,0.005]
[1736130352684,0.1,98875.0,98874.0,0.406324]
[1736130353988,0.101,98875.0,98874.0,0.406324]
[1736130354592,0.101,98875.0,98874.0,0.58537626]
[1736130355291,0.101,98875.0,98874.0,0.58837626]
[1736130355292,0.1,98875.0,98874.0,0.58837626]
[1736130355479,0.1,98875.0,98874.0,0.58937626]
[1736130355886,0.5,98887.0,98886.0,0.045518]
[1736130356085,0.5,98887.0,98886.0,0.904918]
[1736130357081,0.503,98887.0,98886.0,0.904918]
[1736130357282,0.48299847,98887.0,98886.0,0.904918]
[1736130358487,0.47999847,98887.0,98886.0,0.906918]
[1736130359390,0.47999847,98887.0,98886.0,0.91706997]
[1736130360178,0.47999847,98887.0,98886.0,0.41846997]
[1736130363584,0.47999847,98887.0,98886.0,0.408318]